bitfinex-derivatives/quotes_ETHF0:USTF0_20250130
["timestamp","ask_amount","ask_price","bid_price","bid_amount"]
[1738269552605,0.61574,3247.3,3247.0,0.00461631]
[1738269552806,0.61574,3247.3,3247.0,0.62040631]
[1738269553105,0.61574,3247.3,3247.0,0.00461631]
[1738269553307,0.61574,3247.3,3247.0,0.62040631]
[1738269553717,3.6995,3247.6,3247.0,0.00461631]
[1738269553908,0.61571,3247.5,3247.2,0.61575]
[1738269554111,3.82349,3247.6,3247.3,0.61572]
[1738269554608,0.00461631,3247.7,3247.0,0.00461631]
[1738269554917,0.61569,3247.6,3247.3,0.61572]
[1738269555307,0.61577,3247.2,3247.0,0.00461631]
[1738269555507,3.82358,3247.1,3247.0,0.00461631]
[1738269555707,3.2078,3247.6,3247.0,3.21016544]
[1738269556107,3.2078,3247.6,3247.0,0.62039631]
[1738269556108,0.61573,3247.4,3247.0,0.62039631]
[1738269556415,3.2078,3247.6,3247.0,0.00461631]
[1738269556616,0.61573,3247.4,3247.0,0.62040631]
[1738269556809,0.61573,3247.4,3247.1,0.61576]
[1738269557217,3.2078,3247.6,3247.0,0.00461631]
[1738269557414,3.2078,3247.2,3247.0,0.00461631]
[1738269557716,0.61592,3246.4,3246.2,0.4937]
[1738269557921,3.2078,3246.8,3245.8,3.20554913]
[1738269558215,0.538,3247.1,3245.0,3.20554913]
[1738269558216,3.2078,3245.9,3245.0,3.20554913]
[1738269558411,3.2078,3245.9,3245.1,0.61614]
[1738269558619,0.538,3245.8,3245.1,0.61614]
[1738269558916,0.61612,3245.3,3245.2,0.00461631]
[1738269559215,3.2078,3245.4,3244.7,0.61623]
[1738269559420,0.61617,3245.1,3244.6,3.82178913]
[1738269559718,0.61615,3245.2,3244.7,0.61623]
[1738269560219,3.2078,3245.4,3245.0,3.20554913]
[1738269560712,3.75041631,3245.8,3245.4,0.61609]
[1738269560915,0.61604,3245.7,3245.3,0.61611]
[1738269561220,3.75041631,3245.8,3245.4,3.82389]
[1738269561711,4.36644631,3245.8,3245.3,0.61611]
[1738269561913,0.54261631,3245.8,3245.4,3.2078]
[1738269562110,0.54261631,3245.8,3245.7,0.61604]
[1738269562111,0.00461631,3245.8,3245.7,0.61604]
[1738269562718,0.00461631,3245.8,3245.7,5.61604]
[1738269563106,3.2078,3246.6,3246.5,0.61589]
[1738269563508,3.2078,3246.6,3246.0,3.2078]
[1738269563911,3.2078,3247.0,3246.5,0.61589]
[1738269564112,0.61583,3246.9,3246.6,0.61587]
[1738269564312,3.8236,3247.0,3246.6,0.61587]
[1738269564619,3.8236,3247.0,3246.4,3.21241631]
[1738269564620,3.2078,3247.0,3246.4,3.21241631]
[1738269564813,0.00461631,3247.1,3247.0,0.61579]
[1738269565016,0.00461631,3247.1,3246.9,0.61581]
[1738269565219,0.00461631,3247.1,3247.0,0.61579]
[1738269565419,0.61579,3247.0,3246.8,3.2078]
[1738269565619,0.62040631,3247.1,3246.8,0.61582]
[1738269565920,0.62040631,3247.1,3246.7,3.2078]
[1738269565925,0.00461631,3247.1,3246.9,0.6158]
[1738269566122,0.00461631,3247.1,3247.0,0.61579]
[1738269566619,0.00461631,3247.1,3246.9,0.6158]
[1738269566918,1.54407631,3247.1,3246.4,0.00461631]
[1738269567118,0.61589,3246.5,3246.4,0.00461631]
[1738269570427,0.6729,3246.7,3246.4,0.00461631]
[1738269570627,3.2078,3246.8,3246.4,0.00461631]
[1738269570827,0.00461631,3247.1,3246.4,0.00461631]
[1738269571327,0.61585,3246.7,3246.4,0.00461631]
[1738269571714,0.61587,3246.6,3246.4,0.00461631]
[1738269571919,0.61589,3246.5,3246.4,0.00461631]
[1738269574327,0.61589,3246.5,3245.2,1.54033]
[1738269574328,9.8111214,3246.5,3244.2,3.2078]
[1738269574530,9.8111214,3246.5,3244.0,4.8111214]
[1738269574531,0.61614,3245.2,3244.9,0.61618]
[1738269574726,3.2078,3245.5,3244.4,3.8638]
[1738269575031,0.61619,3244.9,3244.6,0.61624]
[1738269575233,0.61619,3244.9,3244.4,3.8638]
[1738269575429,0.61618,3245.0,3244.7,0.61622]
[1738269575627,0.62079631,3245.0,3244.7,0.61622]
[1738269575935,0.61621,3244.9,3244.6,0.61624]
[1738269576234,0.61619,3244.9,3244.4,3.8638]
[1738269576434,0.61619,3244.9,3244.6,0.61623]
[1738269576731,0.62079631,3245.0,3244.7,0.61622]
[1738269576931,0.6162,3244.9,3244.6,0.61624]
[1738269577521,0.6162,3244.9,3244.4,3.8638]
[1738269577729,0.00461631,3245.0,3244.4,3.8638]
[1738269578323,0.00461631,3245.0,3244.8,0.61621]
[1738269578633,0.00461631,3245.0,3244.9,0.61619]
[1738269579228,0.6655,3246.1,3244.9,5.0]
[1738269579435,3.2078,3246.3,3245.5,3.2078]
[1738269579634,3.2078,3246.3,3245.6,0.6222]
[1738269579826,0.61606,3245.6,3245.5,3.2078]
[1738269580027,3.2078,3245.9,3245.1,0.61615]
[1738269580226,3.2078,3245.9,3244.8,3.2078]
[1738269580227,0.61615,3245.2,3244.9,0.61618]
[1738269580422,0.61616,3245.1,3244.8,3.824]
[1738269580835,3.2078,3245.5,3244.9,0.61619]
[1738269581131,1.54025,3245.4,3244.8,3.2078]
[1738269581439,3.2078,3244.9,3244.4,3.2078]
[1738269581734,0.61622,3244.8,3244.5,0.61625]
[1738269581934,0.61624,3244.7,3244.4,3.2078]
[1738269582136,0.61622,3244.8,3244.5,0.61626]
[1738269582332,3.2078,3244.9,3244.4,3.82408]
[1738269582636,3.2078,3244.9,3244.4,3.2078]
[1738269583238,0.61623,3244.7,3244.5,0.61626]
[1738269583435,3.2078,3244.9,3244.4,3.2078]
[1738269583832,3.2078,3244.9,3244.3,0.63331631]
[1738269584037,0.61626,3244.6,3244.3,1.24960631]
[1738269584232,0.61629,3244.4,3244.3,0.63331631]
[1738269584540,0.61629,3244.4,3244.3,0.00461631]
[1738269586339,3.2078,3244.5,3244.3,0.00461631]
[1738269586637,3.2078,3244.5,3244.4,0.61629]
[1738269586837,3.2078,3244.9,3244.3,0.00461631]
[1738269587033,3.824,3244.9,3244.6,0.61623]
[1738269587238,3.2078,3244.9,3244.4,0.6355]
[1738269587435,0.61622,3244.8,3244.4,0.6355]
[1738269587634,3.2078,3244.9,3244.4,0.6355]
[1738269587831,3.2078,3244.9,3244.3,0.00461631]
[1738269587832,6.41998587,3244.5,3244.3,0.00461631]
[1738269588034,0.61629,3244.4,3244.3,0.00461631]
[1738269588333,3.82407,3244.5,3243.7,4.75324587]
[1738269588539,3.2078,3244.5,3243.8,0.6587]
[1738269588732,3.2078,3244.5,3244.3,0.6163]
[1738269588932,3.82407,3244.5,3244.3,0.6163]
[1738269589130,3.2078,3244.5,3243.8,2.83517]
[1738269589329,3.2078,3244.5,3244.4,0.61629]
[1738269589536,3.2078,3244.5,3244.1,0.00462355]
[1738269589935,3.2078,3244.5,3244.2,0.61632]
[1738269589936,0.6163,3244.4,3244.2,0.61632]
[1738269590139,3.82408,3244.5,3244.2,0.61631]
[1738269590340,3.82408,3244.5,3244.3,0.61631]
[1738269591030,3.2078,3244.5,3244.1,0.00462355]
[1738269591234,3.2078,3244.9,3244.8,0.61621]
[1738269591535,3.2078,3244.9,3244.4,3.2078]
[1738269591937,0.61611,3245.4,3245.1,0.61614]
[1738269592136,0.61611,3245.4,3244.4,4.74849]
[1738269592137,1.2928,3245.5,3244.4,3.2078]
[1738269592334,3.21218587,3245.4,3244.8,0.6162]
[1738269592534,3.21218587,3245.4,3244.4,3.2078]
[1738269592840,0.61617,3245.1,3244.8,0.6162]
[1738269593039,3.21218587,3245.4,3244.4,3.2078]
[1738269593443,1.5403,3245.3,3244.4,3.82408]
[1738269593740,3.2078,3244.8,3244.1,0.00462355]
[1738269594039,0.61633,3244.2,3244.1,0.00462355]
[1738269594235,0.61641,3243.8,3243.6,0.61643]
[1738269594437,0.643,3244.1,3243.3,0.6465]
[1738269594945,3.2078,3244.0,3243.3,0.6465]
[1738269595147,0.61641,3243.8,3243.6,0.61643]
[1738269595345,0.61639,3243.9,3243.7,0.61641]
[1738269595649,0.61638,3243.9,3243.7,0.61642]
[1738269595841,0.61641,3243.8,3243.6,0.61643]
[1738269596039,3.21242355,3244.0,3243.4,0.00462355]
[1738269596341,0.61646,3243.5,3243.4,0.00462355]
[1738269596844,3.2078,3243.7,3243.4,0.00462355]
[1738269597037,0.00462355,3244.0,3243.4,0.00462355]
[1738269597240,3.21242355,3244.0,3243.4,0.00462355]
[1738269597643,0.61641,3243.8,3243.5,0.61646]
[1738269598047,0.61641,3243.8,3243.4,0.00462355]
[1738269598246,0.61644,3243.7,3243.4,0.62109355]
[1738269598440,0.61641,3243.8,3243.4,0.00462355]
[1738269598649,3.21242355,3244.0,3243.4,0.00462355]
[1738269598843,3.21242355,3244.0,3243.4,0.71552355]
[1738269599051,0.6164,3243.8,3243.6,0.61644]
[1738269599245,3.21242355,3244.0,3243.6,0.61644]
[1738269599749,0.61639,3243.9,3243.6,0.61644]
[1738269599946,0.61641,3243.8,3243.5,0.61645]
[1738269600243,3.21242355,3244.0,3243.4,0.71552355]
[1738269600445,0.61646,3243.5,3243.4,0.00462355]
[1738269601242,1.29676,3243.5,3243.4,0.00462355]
[1738269601449,0.61646,3243.5,3243.4,0.00462355]
[1738269602743,3.2078,3243.6,3243.4,0.00462355]
[1738269602943,0.61646,3243.5,3243.4,0.00462355]
[1738269603550,3.82425,3243.6,3243.4,0.62110355]
[1738269603749,3.2078,3243.6,3243.4,0.00462355]
[1738269604052,0.61667,3242.4,3242.2,0.61671]
[1738269604254,0.61667,3242.4,3241.5,12.01819865]
[1738269604255,0.05,3242.3,3241.5,12.01819865]
[1738269604452,0.05,3242.3,3241.0,8.05027735]
[1738269604453,6.42437174,3241.6,3241.0,8.05027735]
[1738269604653,0.61696,3240.9,3240.7,4.81687579]
[1738269604853,3.2078,3240.8,3240.7,4.56907579]
[1738269605151,3.2078,3240.8,3240.7,4.06907579]
[1738269605557,3.2078,3240.8,3240.7,3.57677579]
[1738269606247,3.82477,3240.8,3240.7,3.57677579]
[1738269606444,3.2078,3240.8,3240.7,3.57677579]
[1738269607354,3.2078,3240.8,3240.7,4.19376579]
[1738269608051,0.00462355,3241.1,3240.7,3.57677579]
[1738269608260,3.2078,3241.7,3240.9,3.2078]
[1738269608454,3.2078,3241.7,3241.6,0.61682]
[1738269609056,3.2078,3242.3,3241.3,3.2078]
[1738269609258,3.8245,3242.3,3241.8,0.61678]
[1738269609453,3.8245,3242.3,3241.4,0.6638]
[1738269609454,3.2078,3242.3,3241.4,0.6638]
[1738269609758,0.00462355,3242.1,3241.5,0.70112355]
[1738269609949,0.00462355,3242.1,3241.8,0.61678]
[1738269610150,0.00462355,3242.1,3241.5,0.70112355]
[1738269610151,0.00462355,3242.1,3242.0,0.61674]
[1738269610657,0.61676,3242.0,3241.5,1.31795355]
[1738269610854,0.00462355,3242.1,3241.5,0.70112355]
[1738269611160,0.00462355,3242.1,3242.0,0.61674]
[1738269611751,0.00462355,3242.1,3241.8,3.2078]
[1738269611952,0.00462355,3242.1,3241.5,0.70112355]
[1738269612156,0.00462355,3242.1,3242.0,0.61674]
[1738269612557,0.00462355,3242.1,3241.5,0.70112355]
[1738269612858,3.8246,3241.8,3241.5,0.70112355]
[1738269613153,0.61682,3241.6,3241.5,0.70112355]
[1738269613456,9.74979,3241.8,3240.1,3.2078]
[1738269613660,9.74979,3241.8,3240.4,0.61704]
[1738269613661,3.82479,3240.8,3240.4,0.61704]
[1738269613851,3.2078,3240.8,3240.2,0.6583]
[1738269614162,3.2078,3240.4,3240.2,0.6583]
[1738269614357,3.2078,3240.9,3240.6,0.617]
[1738269614662,3.2078,3240.9,3240.2,0.6583]
[1738269614855,3.82476,3240.9,3240.2,0.6583]
[1738269615054,0.61698,3240.8,3240.5,0.61703]
[1738269615261,3.2078,3240.9,3240.7,0.61699]
[1738269615455,3.2078,3240.9,3240.6,0.617]
[1738269615653,3.2078,3240.9,3240.2,0.6583]
[1738269616061,3.2078,3240.4,3240.2,0.6583]
[1738269616359,3.71907245,3241.4,3240.2,0.6583]
[1738269616360,3.2078,3240.8,3240.2,0.6583]
[1738269616550,3.2078,3240.8,3240.7,0.61699]
[1738269617252,1.54645355,3242.1,3240.7,0.61699]
[1738269617253,3.2078,3241.2,3240.7,0.61699]
[1738269617457,3.2078,3241.2,3241.1,0.61692]
[1738269618053,3.2078,3241.2,3240.9,0.61694]
[1738269618255,3.2078,3241.2,3240.2,0.6583]
[1738269618453,3.82482,3240.6,3240.4,0.61704]
[1738269618654,3.2078,3240.6,3240.4,0.61704]
[1738269618957,3.2078,3240.6,3240.2,0.6583]
[1738269618958,3.82481,3240.6,3240.2,0.6583]
[1738269619158,3.2078,3240.6,3240.5,0.61703]
[1738269619958,3.2078,3241.0,3240.9,0.61695]
[1738269620362,0.61688,3241.4,3240.3,3.2078]
[1738269620557,3.82464,3241.5,3241.4,0.61686]
[1738269620856,0.61688,3241.3,3241.2,0.61689]
[1738269621158,0.61695,3241.0,3240.4,2.27853]
[1738269621362,0.61706,3240.4,3240.3,0.61705]
[1738269621559,0.61703,3240.5,3240.4,0.61705]
[1738269622062,0.61704,3240.5,3240.3,0.61705]
[1738269622260,0.61704,3240.5,3240.4,0.61705]
[1738269622566,0.61704,3240.5,3240.3,0.61707]
[1738269622757,3.2078,3240.6,3240.2,0.6583]
[1738269623261,3.82481,3240.6,3240.5,0.61703]
[1738269623661,3.2078,3240.6,3240.4,0.61704]
[1738269623863,0.61703,3240.5,3240.4,0.61704]
[1738269624064,3.2078,3240.6,3240.2,0.6583]
[1738269624363,0.61706,3240.4,3240.3,0.61706]
[1738269624659,0.61705,3240.5,3240.4,0.61705]
[1738269624864,3.82482,3240.6,3240.5,0.61703]
[1738269625259,3.2078,3240.6,3240.5,0.61703]
[1738269625857,3.2078,3241.1,3241.0,0.61693]
[1738269627968,3.2078,3241.7,3241.6,0.61682]
[1738269628155,0.00462355,3242.1,3242.0,0.61674]
[1738269628355,0.00462355,3242.1,3241.3,3.2078]
[1738269628660,0.61674,3242.0,3241.3,3.2078]
[1738269628965,0.00462355,3242.1,3241.3,3.2078]
[1738269629166,0.00462355,3242.1,3242.0,0.61674]
[1738269631960,3.2078,3243.0,3242.0,5.0]
[1738269632154,5.8652208,3243.6,3243.5,0.61646]
[1738269633770,5.8652208,3243.6,3243.2,0.00462355]
[1738269634061,5.8652208,3243.6,3243.5,0.61646]
[1738269634766,5.8652208,3243.6,3243.2,3.21242355]
[1738269634767,0.00462355,3243.9,3243.8,0.6164]
[1738269635063,0.62101355,3243.9,3243.7,0.61641]
[1738269635258,0.61655,3243.1,3242.9,0.61657]
[1738269635455,3.2078,3243.4,3242.3,3.2078]
[1738269635654,3.2078,3243.4,3242.6,0.61662]
[1738269635655,0.6166,3242.8,3242.6,0.61662]
[1738269635859,3.2078,3243.0,3242.3,3.2078]
[1738269636061,3.2078,3243.0,3242.0,1.4508]
[1738269636259,3.2078,3242.6,3241.7,3.2078]
[1738269636469,1.32076,3242.5,3242.3,0.61668]
[1738269636667,1.32076,3242.5,3242.4,0.61667]
[1738269636668,0.7041,3242.5,3242.4,0.61667]
[1738269636864,3.2078,3242.6,3242.5,0.61665]
[1738269637165,55.2,3258.7,3242.5,0.61665]
[1738269637166,3.21242355,3243.9,3242.6,1.54158]
[1738269637369,3.2078,3243.5,3242.8,3.2078]
[1738269637873,5.8652208,3243.4,3242.8,3.2078]
[1738269638076,5.8652208,3243.4,3243.3,0.6165]
[1738269638968,0.00462355,3243.9,3243.8,0.6164]
[1738269639170,0.00462355,3243.9,3243.8,3.8242]
[1738269641372,3.21242355,3243.9,3243.5,0.61645]
[1738269641571,3.21242355,3243.9,3243.4,0.61647]
[1738269641767,1.4307,3243.8,3243.0,1.54139]
[1738269641970,1.4307,3243.8,3242.9,3.8911]
[1738269642373,1.4307,3243.8,3242.5,1.54159]
[1738269642374,0.61653,3243.2,3243.0,0.61655]
[1738269642661,3.2078,3243.5,3243.0,0.61655]
[1738269642867,3.2078,3243.5,3242.8,3.2078]
[1738269643061,0.61649,3243.4,3243.3,0.61649]
[1738269643276,0.61649,3243.4,3243.2,0.61651]
[1738269643574,3.2078,3243.5,3243.2,0.61651]
[1738269643876,0.61649,3243.4,3243.3,0.6165]
[1738269644078,3.2078,3243.5,3242.8,3.2078]
[1738269644369,3.2078,3243.5,3242.4,3.9218]
[1738269644577,1.54121,3243.4,3242.7,0.6166]
[1738269644768,0.61658,3242.9,3242.5,0.61665]
[1738269644966,3.2078,3243.1,3242.5,0.61664]
[1738269645279,3.2078,3243.1,3242.0,3.942]
[1738269645572,3.2078,3243.1,3242.9,0.61656]
[1738269645777,3.2078,3243.1,3242.0,3.942]
[1738269646072,5.26024245,3243.5,3241.7,1.54201]
[1738269646073,0.61669,3242.4,3241.7,1.54201]
[1738269646267,0.61669,3242.4,3242.3,0.61669]
[1738269646472,0.61664,3242.6,3242.5,0.61665]
[1738269646774,3.2078,3242.7,3242.6,0.61663]
[1738269647173,4.86807245,3243.5,3241.7,0.6818]
[1738269647174,3.2078,3243.2,3242.5,3.2078]
[1738269647367,3.2078,3243.2,3243.1,0.61654]
[1738269647772,3.2078,3243.2,3242.5,3.2078]
[1738269647973,3.2078,3243.2,3243.0,0.61654]
[1738269647974,3.82433,3243.2,3243.0,0.61654]
[1738269648282,0.61659,3242.9,3242.7,0.6166]
[1738269648774,0.61661,3242.8,3242.6,0.61663]
[1738269648975,3.2078,3243.2,3242.5,3.2078]
[1738269649177,0.61655,3243.1,3243.0,0.61655]
[1738269649376,3.2078,3243.2,3242.5,3.2078]
[1738269649775,0.61663,3242.6,3242.5,3.2078]
[1738269650077,3.2078,3242.8,3242.4,0.61666]
[1738269650271,0.61674,3242.1,3241.8,3.2078]
[1738269650466,3.2078,3242.3,3241.8,3.2078]
[1738269650674,0.61671,3242.2,3241.9,0.61676]
[1738269650881,3.21242355,3242.3,3241.8,3.2078]
[1738269651572,3.21242355,3242.3,3242.2,0.61671]
[1738269651882,3.82911355,3242.3,3242.2,0.61671]
[1738269652383,3.21242355,3242.3,3242.2,0.61671]
[1738269654472,0.00462355,3242.3,3242.2,0.61671]
[1738269654684,0.00462355,3242.3,3242.2,3.82451]
[1738269655178,0.00462355,3242.3,3242.2,4.54741]
[1738269655971,3.2078,3243.3,3242.5,1.5416]
[1738269656180,0.61653,3243.2,3243.1,0.61652]
[1738269656379,3.82431,3243.3,3243.2,0.61652]
[1738269656781,3.2078,3243.3,3242.5,3.21471009]
[1738269656980,1.5413,3243.2,3242.2,3.9307]
[1738269657183,0.61661,3242.7,3242.6,0.00462355]
[1738269657486,3.2078,3242.9,3242.2,3.05196355]
[1738269657683,4.74943,3242.5,3241.7,3.21471009]
[1738269657983,3.2078,3242.0,3241.0,1.4092]
[1738269658185,3.2078,3241.6,3241.0,0.7046]
[1738269658485,3.2078,3241.6,3241.5,0.61684]
[1738269659377,3.82462,3241.6,3241.5,0.61684]
[1738269659572,0.61685,3241.5,3241.4,0.61684]
[1738269659786,3.82463,3241.6,3241.5,0.61684]
[1738269660089,3.82463,3241.6,3241.2,0.7613]
[1738269660090,0.61686,3241.5,3241.4,0.61685]
[1738269660285,0.61688,3241.4,3241.3,0.61686]
[1738269660483,3.2078,3241.6,3240.9,3.21471009]
[1738269660484,0.61691,3241.2,3241.1,0.61689]
[1738269660678,0.61689,3241.3,3241.2,0.61688]
[1738269660987,3.2078,3241.6,3241.3,0.61686]
[1738269660988,0.61687,3241.4,3241.3,0.61686]
[1738269661377,0.00462355,3241.5,3241.4,0.61686]
[1738269662889,0.00462355,3241.5,3241.4,1.36366]
[1738269663204,0.61691,3241.2,3241.1,0.61691]
[1738269663385,0.61693,3241.1,3241.0,0.61692]
[1738269663580,0.61687,3241.4,3241.3,0.61686]
[1738269663788,0.6169,3241.3,3241.2,0.61688]
[1738269663987,0.6169,3241.3,3240.8,19.0032]
[1738269663988,0.00462355,3241.5,3240.8,14.253]
[1738269664189,3.2078,3241.2,3240.8,14.253]
[1738269664390,0.61695,3240.9,3240.8,14.86996]
[1738269664887,0.61695,3240.9,3240.8,0.61696]
[1738269665288,0.617,3240.7,3240.6,0.61699]
[1738269665488,0.61698,3240.8,3240.7,0.61698]
[1738269665986,3.2078,3240.8,3240.4,0.7468]
[1738269666189,0.61703,3240.5,3240.4,1.36384]
[1738269666391,3.2078,3240.8,3240.3,0.00421012]
[1738269666585,0.61705,3240.4,3240.3,0.62128012]
[1738269666988,0.61705,3240.4,3240.3,0.00421012]
[1738269667698,3.82479,3240.8,3240.7,0.61699]
[1738269667890,0.617,3240.7,3240.6,0.617]
[1738269668088,0.617,3240.7,3240.3,0.00421012]
[1738269668089,3.82479,3240.8,3240.4,0.61705]
[1738269668394,0.61705,3240.4,3240.3,0.00421012]
[1738269668595,3.82485,3240.4,3240.3,0.00421012]
[1738269669091,3.2078,3240.4,3240.3,0.62128012]
[1738269669288,3.2078,3240.4,3240.3,0.00421012]
[1738269669494,3.82485,3240.4,3240.3,0.62128012]
[1738269669699,3.82485,3240.4,3240.3,0.00421012]
[1738269669990,3.2078,3240.4,3240.3,0.62128012]
[1738269670394,3.82485,3240.4,3240.3,0.00421012]
[1738269670597,3.82485,3240.4,3240.3,0.62128012]
[1738269670894,3.2078,3240.4,3240.3,0.62128012]
[1738269671703,3.2078,3240.9,3240.3,0.00421012]
[1738269671992,3.2078,3241.4,3241.3,0.61688]
[1738269672389,0.00462355,3241.5,3240.4,5.90859683]
[1738269672592,3.2078,3241.0,3240.4,2.1918]
[1738269672792,3.2078,3240.6,3240.4,0.7082]
[1738269672994,3.2078,3240.6,3240.3,0.00421012]
[1738269673197,0.61705,3240.4,3240.3,0.00421012]
[1738269673501,3.2078,3240.6,3240.3,0.00421012]
[1738269673799,0.61705,3240.4,3240.3,0.62127012]
[1738269674201,0.61705,3240.4,3240.3,0.00421012]
[1738269674589,0.61705,3240.4,3240.3,0.62127012]
[1738269674789,3.2078,3240.6,3240.3,0.00421012]
[1738269675095,3.82481,3240.6,3240.3,0.00421012]
[1738269675297,0.61703,3240.5,3240.3,0.62126012]
[1738269675506,0.61705,3240.4,3240.3,0.00421012]
[1738269675692,0.61705,3240.4,3240.3,0.62128012]
[1738269675892,3.2078,3240.6,3240.3,0.62128012]
[1738269675893,3.82482,3240.6,3240.5,0.61703]
[1738269676199,3.2078,3241.1,3241.0,0.61693]
[1738269676502,3.2078,3241.1,3240.5,3.08516]
[1738269676503,0.00462355,3241.5,3240.7,1.54248]
[1738269676689,0.6169,3241.3,3240.7,1.54248]
[1738269676897,0.00462355,3241.5,3241.4,0.61686]
[1738269677100,0.00462355,3241.5,3241.4,3.82466]
[1738269678297,9.4124403,3241.9,3241.8,0.61678]
[1738269678497,9.4124403,3241.9,3241.8,3.82458]
[1738269678803,0.61679,3241.8,3241.7,0.61679]
[1738269678998,0.6168,3241.7,3241.4,3.2078]
[1738269679198,9.4124403,3241.9,3241.4,3.2078]
[1738269679199,0.61684,3241.6,3241.5,0.61683]
[1738269679405,9.4124403,3241.9,3241.4,3.2078]
[1738269679605,0.00462355,3241.9,3241.8,0.61678]
[1738269680315,0.00462355,3241.9,3241.4,3.2078]
[1738269680503,0.61679,3241.8,3241.7,0.61679]
[1738269680703,0.00462355,3241.9,3241.8,0.61678]
[1738269680902,0.00462355,3241.9,3241.5,0.61683]
[1738269681107,0.61682,3241.6,3241.5,0.61683]
[1738269681307,0.00462355,3241.9,3241.8,0.61678]
[1738269681706,0.00462355,3241.9,3241.8,3.82458]
[1738269681906,0.00462355,3241.9,3241.8,0.61678]
[1738269682703,0.00462355,3241.9,3241.8,3.82458]
[1738269682909,0.7814,3243.1,3241.8,8.2078]
[1738269683108,0.7814,3243.1,3243.0,0.61655]
[1738269683507,3.2078,3243.3,3242.5,3.9964]
[1738269683807,3.2078,3243.3,3243.2,0.61651]
[1738269684015,0.00462355,3243.2,3242.9,3.2078]
[1738269684310,3.55e-06,3243.2,3243.1,3.83233874]
[1738269684503,3.55e-06,3243.2,3243.1,8.83233874]
[1738269685507,3.55e-06,3243.2,3243.1,3.83233874]
[1738269685716,3.55e-06,3243.2,3243.1,8.83233874]
[1738269685916,3.2078,3244.3,3244.2,0.61632]
[1738269686106,3.2078,3244.3,3243.8,3.2078]
[1738269686312,3.2078,3244.3,3244.1,0.61634]
[1738269686513,3.2078,3244.3,3243.8,3.2078]
[1738269686709,3.82411,3244.3,3243.8,3.2078]
[1738269686913,3.2078,3244.3,3244.1,0.61632]
[1738269687209,3.2078,3244.3,3243.8,3.2078]
[1738269687210,0.61632,3244.2,3243.8,3.2078]
[1738269687410,0.61632,3244.2,3244.0,0.61636]
[1738269687615,3.82412,3244.3,3244.0,0.61636]
[1738269687815,3.2078,3244.3,3243.8,3.2078]
[1738269688017,0.00462355,3244.4,3243.8,3.2078]
[1738269688315,0.00462355,3244.4,3244.3,0.61631]
[1738269688708,3.55e-06,3244.4,3244.3,5.61631]
[1738269689407,3.55e-06,3244.4,3244.3,0.61631]
[1738269689711,3.55e-06,3244.4,3244.3,5.61631]
[1738269689911,3.55e-06,3244.4,3244.3,1.74931]
[1738269690213,3.55e-06,3244.4,3244.3,6.74931]
[1738269690410,3.55e-06,3244.4,3244.3,5.61631]
[1738269690606,3.55e-06,3244.4,3244.3,0.61631]
[1738269690804,3.55e-06,3244.4,3244.3,5.61631]
[1738269691607,9.4124403,3245.5,3245.4,0.6161]
[1738269691803,3.2078,3246.2,3245.0,1.54042]
[1738269691804,3.82376,3246.2,3245.2,3.2078]
[1738269692007,3.2078,3246.2,3245.9,0.61599]
[1738269692205,3.82375,3246.2,3245.4,0.6161]
[1738269692404,3.82375,3246.2,3245.9,0.616]
[1738269692405,0.61597,3246.1,3245.9,0.616]
[1738269692616,0.61597,3246.1,3245.3,3.0629]
[1738269692617,3.2078,3246.2,3246.0,0.61598]
[1738269692812,3.82375,3246.2,3245.9,0.61599]
[1738269693012,0.616,3246.0,3245.7,0.62064355]
[1738269693409,3.21242355,3246.3,3245.7,0.62064355]
[1738269693616,3.2078,3245.9,3245.7,0.00462355]
[1738269693819,0.61602,3245.8,3245.7,0.00462355]
[1738269694417,0.61597,3246.1,3245.8,0.61602]
[1738269694713,0.61597,3246.1,3245.7,0.00462355]
[1738269694914,3.21242355,3246.3,3245.9,0.61599]
[1738269694915,0.61595,3246.2,3245.9,0.61599]
[1738269695121,3.21242355,3246.3,3246.1,0.61595]
[1738269695415,0.61567,3247.7,3247.1,0.61577]
[1738269695719,3.2078,3247.8,3247.2,0.61575]
[1738269695720,0.61569,3247.6,3247.2,0.61575]
[1738269696016,3.2078,3247.8,3247.1,3.2078]
[1738269696217,0.61571,3247.5,3247.1,3.82357]
[1738269696515,0.61571,3247.5,3247.1,3.82356]
[1738269696712,0.61567,3247.7,3247.3,0.61573]
[1738269696909,0.61572,3247.4,3246.9,3.71038656]
[1738269697116,4.75154355,3247.8,3246.7,3.2078]
[1738269697420,0.61581,3247.0,3246.7,0.61584]
[1738269697616,0.61576,3247.2,3246.9,0.61581]
[1738269697818,3.2078,3247.5,3246.4,3.71038656]
[1738269698023,3.2078,3247.5,3246.3,3.2078]
[1738269698226,0.61583,3246.8,3246.6,0.61586]
[1738269698415,0.61584,3246.8,3246.5,0.61588]
[1738269698617,3.2078,3247.1,3246.3,3.2078]
[1738269698818,0.61583,3246.8,3246.6,0.61585]
[1738269699120,0.61583,3246.8,3246.3,3.2078]
[1738269699121,3.82359,3247.1,3246.9,0.6158]
[1738269699322,3.2078,3247.1,3246.4,3.71038656]
[1738269699626,3.2078,3247.1,3247.0,0.61579]
[1738269700622,3.2078,3247.6,3246.7,3.2078]
[1738269700928,0.00462355,3247.8,3247.7,0.61566]
[1738269702326,0.6157,3247.5,3247.4,0.00462355]
[1738269703230,3.8235,3247.5,3247.4,0.00462355]
[1738269706328,0.61587,3246.6,3246.5,3.2078]
[1738269706524,0.61584,3246.8,3246.5,3.82368]
[1738269706829,0.61586,3246.7,3246.5,3.2078]
[1738269707030,3.957,3247.1,3246.1,3.2078]
[1738269707630,0.61579,3247.0,3246.3,0.62053355]
[1738269707827,0.61591,3246.4,3246.3,0.00462355]
[1738269708732,0.616,3245.9,3245.8,14.249]
[1738269708935,0.616,3245.9,3245.6,1.31439]